Cogmind - Beta 12 @@@ ROGUE MODE // 2023.03.04 @ 10:34:39 Player: Plexion Result: Self-destructed Performance ------------- Evolutions (2) 1000 Regions Visited (6) 1200 Robots Destroyed (66) 330 Value Destroyed (1777) 1777 Prototype IDs (1) 20 Alien Tech Used (0) 0 Bonus (730) 730 TOTAL SCORE: 5057 Bonus ------- High Alert Combat Kills 30 Entered Garrisons 200 Used RIF Installer 500 Cogmind --------- Core Integrity 493/550 Matter 222/300 Energy 160/160 System Corruption 0% Temperature Cool (0) Movement Treading (160) Location -8/Garrison Parts ------- > --- POWER (1) -------- Light Nuclear Core > --- PROPULSION (3) --- Light Treads Light Treads Light Treads > --- UTILITY (5) ------ Improved Heat Sink High-capacity Storage Unit Light Armor Plating > --- WEAPON (2) ------- Improved Assault Rifle Improved Assault Rifle > --- INVENTORY (20) --- Light Treads Light Treads Large Storage Unit High-capacity Matter Pod (200) Experimental Sensor Array Shock Rifle Shock Rifle Heavy Assault Rifle Improved Assault Rifle Improved Assault Rifle Rocket Launcher Rocket Launcher Mini Grenade Launcher Peak State ------------ > --- POWER ------------ Improved Ion Engine > --- PROPULSION ------- Light Treads Light Treads Light Treads > --- UTILITY ---------- Improved Heat Sink High-capacity Storage Unit Light Armor Plating Light Armor Plating > --- WEAPON ----------- Improved Assault Rifle Improved Assault Rifle > --- INVENTORY -------- Light Treads Light Treads Light Treads Light Treads Large Storage Unit High-capacity Matter Pod Experimental Sensor Array Heavy Assault Rifle Heavy Assault Rifle Improved Assault Rifle Improved Assault Rifle Rocket Launcher Rocket Launcher Mini Grenade Launcher [Rating: 20] Favorites ----------- Power Improved Ion Engine Engine Improved Ion Engine Power Core Light Nuclear Core Propulsion Light Treads Treads Light Treads Utility High-capacity Storage Unit Device Improved Heat Sink Storage High-capacity Storage Unit Processor Targeting Computer Protection Light Armor Plating Weapon Light Cannon Energy Gun Medium Laser Ballistic Gun Light Assault Rifle Ballistic Cannon Light Cannon Launcher Mini Grenade Launcher Build | -11 -10 -10 -9 -9 -8 -8 ------- Run | Jun Mat Min Mat Min Mat Gar Slots Evolved 4 | . . . 2 . 2 . Power . | . . . . . . . Propulsion 1 | . . . 1 . . . Utility 3 | . . . 1 . 2 . Weapon . | . . . . . . . Parts Attached 56 | 7 8 5 14 8 1 13 Power 4 | 1 1 1 . . . 1 Engine 3 | 1 1 1 . . . . Core 1 | . . . . . . 1 Reactor . | . . . . . . . Propulsion 11 | 2 2 1 4 . . 2 Treads 11 | 2 2 1 4 . . 2 Leg . | . . . . . . . Wheel . | . . . . . . . Hover . | . . . . . . . Flight . | . . . . . . . Utility 12 | 1 3 1 2 4 1 . Device 1 | . . . . . 1 . Storage 3 | 1 2 . . . . . Processor 2 | . 1 . 1 . . . Hackware . | . . . . . . . Protection 6 | . . 1 1 4 . . Artifact . | . . . . . . . Weapon 29 | 3 2 2 8 4 . 10 Energy Gun 5 | 2 1 1 . . . 1 Energy Cannon . | . . . . . . . Ballistic Gun 17 | 1 . 1 5 3 . 7 Ballistic Cannon 2 | . 1 . 1 . . . Launcher 5 | . . . 2 1 . 2 Special Weapon . | . . . . . . . Impact Weapon . | . . . . . . . Slashing Weapon . | . . . . . . . Piercing Weapon . | . . . . . . . Special Melee Weapon . | . . . . . . . Unidentified Prototypes 1 | . . . 1 . . . Parts Lost 15 | . 2 2 2 5 . 4 Power 3 | . 1 1 . . . 1 Propulsion 3 | . . . 1 . . 2 Utility 5 | . . . . 4 . 1 Weapon 4 | . 1 1 1 1 . . Highest Loss Streak 4 | . 1 2 1 2 . 4 To Critical Strikes . | . . . . . . . Average Slot Usage (%) 96 | . 99 94 96 99 82 83 Engine 10 | . 14 9 11 11 9 4 Treads 29 | . 28 28 33 33 27 26 Storage 12 | . 14 14 11 11 9 9 Processor 8 | . 13 10 8 3 . . Protection 7 | . . 3 11 18 18 13 Energy Gun 2 | . 2 4 . . . . Ballistic Gun 15 | . 14 9 18 21 18 17 Ballistic Cannon 7 | . 11 14 2 . . . Naked Turns . | . . . . . . . Heaviest Build 60 | 11 49 54 58 59 60 60 Greatest Support 60 | 40 40 40 60 60 60 60 Greatest Overweight (x) 1 | . 1 1 1 . . . Average Overweight (x) . | . . 1 . . . . Largest Inventory Capacity 20 | 8 20 20 20 20 20 20 Average Capacity 19 | 6 18 20 20 20 20 20 Most Carried 20 | 2 10 16 20 19 15 15 Average Carried 11 | 1 5 12 17 16 14 13 Final Capacity 20 | 8 20 20 20 20 20 20 Final Carried 20 | 2 10 16 20 15 14 13 Class Distribution -------------------- 100% | Mutant Dominant Class ---------------- Mutant | -10/Materials Mutant | -10/Mines Mutant | -9/Materials Mutant | -9/Mines Mutant | -8/Materials Mutant | -8/Garrison Resources | -11 -10 -10 -9 -9 -8 -8 ----------- Run | Jun Mat Min Mat Min Mat Gar Matter Collected 1877 | 215 348 327 474 369 . 144 Remotely . | . . . . . . . Salvage Created 1848 | . 388 225 785 315 . 135 Parts 121 | . 36 15 44 19 . 7 Haulers Intercepted 3 | . . . 3 . . . Recyclers Shooed 1 | . . . 1 . . . Parts Field Recycled . | . . . . . . . Retrieved Matter . | . . . . . . . Parts Self-Destructed . | . . . . . . . Prevented . | . . . . . . . Kills | -11 -10 -10 -9 -9 -8 -8 ------- Run | Jun Mat Min Mat Min Mat Gar Combat Hostiles Destroyed 58 | . 17 4 16 16 . 5 Guns 32 | . 5 1 10 15 . 1 Cannons 16 | . 12 3 1 . . . AOE 10 | . . . 5 1 . 4 Classes Destroyed 11 | . 4 2 3 2 . . Worker 6 | . . 2 2 2 . . Tunneler 1 | . . 1 . . . . Hauler 3 | . . . 3 . . . Recycler 2 | . 1 1 . . . . Watcher 3 | . 1 . 2 . . . Swarmer 18 | . 9 . 3 4 . 2 Grunt 26 | . 8 4 8 3 . 3 Duelist 1 | . . . 1 . . . Sentry 4 | . . . 4 . . . Demolisher 2 | . . . . 2 . . Assembled 7 | . . . . 7 . . Best Kill Streak 5 | . 5 2 4 4 . 2 Combat Bots Only 5 | . 5 2 3 3 . 2 Max Kills in Single Turn 2 | . 1 1 2 1 . 2 Gunslinging . | . . . . . . . Exploded 2 | . . . 2 1 . 2 Melee . | . . . . . . . Uniques/NPCs Destroyed . | . . . . . . . Combat | -11 -10 -10 -9 -9 -8 -8 -------- Run | Jun Mat Min Mat Min Mat Gar Damage Taken 2932 | . 532 231 846 1039 . 284 Core 396 | . 104 15 63 157 . 57 Absorbed by Shields . | . . . . . . . Core Remaining (%) 65 | 100 . 52 . 45 . . Volleys Fired 181 | . 52 18 46 49 . 16 Largest 2 | . 2 2 2 2 . 2 Hottest 85 | . 70 85 58 46 . 73 Shots Fired 348 | . 103 36 88 93 . 28 Gun 267 | . 60 18 76 88 . 25 Cannon 69 | . 43 18 8 . . . Launcher 12 | . . . 4 5 . 3 Special . | . . . . . . . Kinetic 323 | . 95 32 84 88 . 24 Thermal 7 | . 3 4 . . . . Explosive 12 | . . . 4 5 . 3 Electromagnetic 6 | . 5 . . . . 1 Robot Hit Streak 25 | . 16 10 13 18 . 25 Robot Miss Streak 5 | . 5 1 2 4 . 3 Penetration Max . | . . . . . . . Secondary Targets 3 | . . . 1 2 . . Max Gunslinging Chain 1 | . . . 1 1 . . Shots Hit Robots 246 | . 75 29 70 59 . 13 Core Hits 108 | . 25 11 34 29 . 9 Critical Kills . | . . . . . . . Critical Parts Destroyed 1 | . . . . 1 . . Critical Strikes 3 | . 1 1 . 1 . . Destroy 1 | . . . . 1 . . Blast 2 | . 1 1 . . . . Melee Attacks . | . . . . . . . Impact . | . . . . . . . Slashing . | . . . . . . . Piercing . | . . . . . . . Sneak Attacks . | . . . . . . . Combat Hostiles . | . . . . . . . Follow-up Attacks . | . . . . . . . Damage Inflicted 4337 | . 1014 391 1501 1002 . 429 Guns 2518 | . 379 127 963 900 . 149 Cannons 1015 | . 635 264 116 . . . Explosions 804 | . . . 422 102 . 280 Melee . | . . . . . . . Ramming . | . . . . . . . Kinetic 3373 | . 902 343 1079 900 . 149 Thermal 88 | . 40 48 . . . . Explosive 804 | . . . 422 102 . 280 Electromagnetic 72 | . 72 . . . . . Impact . | . . . . . . . Slashing . | . . . . . . . Piercing . | . . . . . . . Highest Corruption . | . . . . . . . Average Corruption . | . . . . . . . Corruption Purged . | . . . . . . . Corruption Blocked . | . . . . . . . Overload Shots . | . . . . . . . Overflow Damage 23 | . 17 . 6 . . . Projectiles 17 | . 17 . . . . . Explosions 6 | . . . 6 . . . Melee . | . . . . . . . Knockbacks 10 | . 7 1 2 . . . Impact . | . . . . . . . Kinetic 10 | . 7 1 2 . . . Secondary . | . . . . . . . Self-Inflicted Damage 54 | . . . . . . 54 Shots 2 | . . . . . . 2 Rammed . | . . . . . . . Targets Rammed . | . . . . . . . Kicked . | . . . . . . . Crushed . | . . . . . . . Highest Temperature 88 | . 88 61 83 62 . 3 Average Temperature 23 | . 23 16 25 27 . 3 Received Heat Transfer 957 | . 192 138 276 198 . 153 Siege Activations . | . . . . . . . Robots Corrupted . | . . . . . . . Combat Hostiles . | . . . . . . . Parts Fried . | . . . . . . . Impact Corruptions . | . . . . . . . Robots Melted . | . . . . . . . Combat Hostiles . | . . . . . . . Parts Melted . | . . . . . . . Heat Transferred 259 | . 111 148 . . . . Parts Sabotaged . | . . . . . . . Parts Stolen . | . . . . . . . Parts Stripped . | . . . . . . . Power Chain Reactions . | . . . . . . . Missiles Intercepted . | . . . . . . . Alert | -11 -10 -10 -9 -9 -8 -8 ------- Run | Jun Mat Min Mat Min Mat Gar Peak Influence 455 | . 267 149 455 225 25 139 Initial 159 | . . 74 . 159 25 18 Average 108 | . 119 36 283 100 25 103 Maximum Alert Level 2 | . 1 . 2 1 . . Low Security (%) 80 | 100 78 100 18 87 100 100 Level 1 17 | . 21 . 70 12 . . Level 2 1 | . . . 11 . . . Level 3 . | . . . . . . . Level 4 . | . . . . . . . Level 5 . | . . . . . . . High Security . | . . . . . . . Max Security . | . . . . . . . Squads Dispatched 6 | . 3 . 2 . 1 . Investigation 3 | . 2 . . . 1 . Extermination . | . . . . . . . Reinforcement 3 | . 1 . 2 . . . Assault . | . . . . . . . Garrison . | . . . . . . . Intercept . | . . . . . . . Searches Triggered . | . . . . . . . Construction Impeded . | . . . . . . . Haulers Reinforced . | . . . . . . . Active Scanning Responses . | . . . . . . . Cargo Convoy Interrupts . | . . . . . . . Stealth | -11 -10 -10 -9 -9 -8 -8 --------- Run | Jun Mat Min Mat Min Mat Gar Distress Signals 8 | . 3 . 5 . . . Communications Jammed . | . . . . . . . Distress Signals . | . . . . . . . Times Spotted 88 | . 29 4 31 18 . 6 Peak Tracking Total 7 | . 7 2 6 3 . 3 Tactical Retreats 6 | . 3 . . 3 . . Traps | -11 -10 -10 -9 -9 -8 -8 ------- Run | Jun Mat Min Mat Min Mat Gar Traps Triggered 3 | . 2 . . . . 1 Indirectly . | . . . . . . . Trap Hack Attempts . | . . . . . . . Triggered . | . . . . . . . Disarmed . | . . . . . . . Reprogrammed . | . . . . . . . Reused . | . . . . . . . Traps Extracted . | . . . . . . . Installed . | . . . . . . . Triggered . | . . . . . . . Machines | -11 -10 -10 -9 -9 -8 -8 ---------- Run | Jun Mat Min Mat Min Mat Gar Machines Disabled 2 | . 1 . . . . 1 Max in Single Turn 1 | . 1 . . . . 1 Garrison Relay 1 | . . . . . . 1 Machines Repaired . | . . . . . . . Machines Sabotaged . | . . . . . . . Overloaded Fab Kills . | . . . . . . . Hacking | -11 -10 -10 -9 -9 -8 -8 --------- Run | Jun Mat Min Mat Min Mat Gar Machines Accessed 7 | . 3 . 2 . 1 1 Terminals 6 | . 3 . 2 . . 1 Fabricators . | . . . . . . . Repair Stations . | . . . . . . . Recycling Units . | . . . . . . . Scanalyzers . | . . . . . . . Garrison Access 1 | . . . . . 1 . Total Hacks 29 | . 14 . 6 . 4 5 Successful 13 | . 7 . 4 . 1 1 Failed 16 | . 7 . 2 . 3 4 Catastrophic 2 | . 1 . . . . 1 Database Lockouts . | . . . . . . . Manual 22 | . 14 . 5 . . 3 Terminals 25 | . 14 . 6 . . 5 Fabricators . | . . . . . . . Repair Stations . | . . . . . . . Recycling Units . | . . . . . . . Scanalyzers . | . . . . . . . Garrison Access 4 | . . . . . 4 . Terminal Hacks 12 | . 7 . 4 . . 1 Robot Analysis 7 | . 5 . 2 . . . Branch Access Points 1 | . . . 1 . . . Hauler Manifests 1 | . 1 . . . . . Zone Layout 2 | . 1 . 1 . . . Garrison Registry 1 | . . . . . . 1 Fabricator Hacks . | . . . . . . . Repair Station Hacks . | . . . . . . . Recycling Unit Hacks . | . . . . . . . Scanalyzer . | . . . . . . . Garrison Access Hacks 1 | . . . . . 1 . Unlock Access 1 | . . . . . 1 . Unauthorized Hacks . | . . . . . . . Terminals . | . . . . . . . Fabricators . | . . . . . . . Repair Stations . | . . . . . . . Recycling Units . | . . . . . . . Scanalyzers . | . . . . . . . Garrison Access . | . . . . . . . Data Cores Recovered . | . . . . . . . Used . | . . . . . . . Hacking Detections 6 | . 3 . 1 . 1 1 Full Trace Events 1 | . . . . . 1 . Feedback Events . | . . . . . . . Feedback Blocked . | . . . . . . . Robot Schematics Acquired . | . . . . . . . Robots Built . | . . . . . . . Authchips . | . . . . . . . Time . | . . . . . . . Total Robot Build Rating . | . . . . . . . Part Schematics Acquired . | . . . . . . . Parts Built . | . . . . . . . Authchips . | . . . . . . . Time . | . . . . . . . Total Part Build Rating . | . . . . . . . Parts Repaired . | . . . . . . . Time . | . . . . . . . Parts Recycled . | . . . . . . . Recycled Matter . | . . . . . . . Retrieved Matter . | . . . . . . . Retrieved Components . | . . . . . . . Parts Scanalyzed . | . . . . . . . Part Schematics Acquired . | . . . . . . . Parts Damaged . | . . . . . . . Bothacking | -11 -10 -10 -9 -9 -8 -8 ------------ Run | Jun Mat Min Mat Min Mat Gar Used RIF Installer 1 | . . . . . . 1 Robots Hacked . | . . . . . . . Non-combat . | . . . . . . . Combat . | . . . . . . . Robot Hacks Applied . | . . . . . . . Relay Couplers Released 3 | . . . . . . 3 Machine Destruction 3 | . . . . . . 3 Fabnet Peak Effective % . | . . . . . . . Robots Rewired . | . . . . . . . Allies Hacked . | . . . . . . . Hacks Repelled . | . . . . . . . Allies | -11 -10 -10 -9 -9 -8 -8 -------- Run | Jun Mat Min Mat Min Mat Gar Total Allies 2 | . . 1 . 1 . . Largest Group 1 | . . 1 . 1 1 1 Highest-Rated Group 31 | . . 31 . 31 31 31 Highest-Rated Ally 31 | . . 31 . 31 31 31 Total Orders . | . . . . . . . Ally Attacks 3 | . . . . . . 3 Total Damage 20 | . . . . . . 20 Kills . | . . . . . . . Allies Corrupted . | . . . . . . . Allies Melted 1 | . . . . . . 1 Intel | -11 -10 -10 -9 -9 -8 -8 ------- Run | Jun Mat Min Mat Min Mat Gar Robot Analysis Total 7 | . 5 . 2 . . . Derelict Logs Recovered 3 | . . 2 . 1 . . Drone Launches . | . . . . . . . Drone Recoveries . | . . . . . . . Exploration | -11 -10 -10 -9 -9 -8 -8 ------------- Run | Jun Mat Min Mat Min Mat Gar Turns Passed 5238 | 84 1413 1624 723 1060 49 285 Spaces Moved 2203 | 48 518 649 337 484 30 137 Core 3 | 3 . . . . . . Treads 2200 | 45 518 649 337 484 30 137 Legs . | . . . . . . . Wheels . | . . . . . . . Hover . | . . . . . . . Flight . | . . . . . . . Fastest Speed 50 | 50 160 240 160 160 160 160 Average Speed 199 | 153 228 240 160 160 160 160 Slowest Speed 240 | 160 240 240 240 160 160 160 Overloaded Moves . | . . . . . . . Propulsion Burnouts . | . . . . . . . Robots Hopped . | . . . . . . . Cave-ins Triggered . | . . . . . . . Exploration Rate (%) 51 | 3 90 96 55 93 6 20 Regions Visited 6 Branch Regions 2 Pre-discovered Areas 1 | . . 1 . . . . Known Exits Taken 3 | . . . 1 1 1 . Unknown Exits Taken 3 | 1 1 1 . . . . Scrap Searched 4 | . . 3 . 1 . . Spaces Dug . | . . . . . . . Terrain Destroyed 53 | . . . 28 25 . . Melee . | . . . . . . . Projectile . | . . . . . . . AOE 53 | . . . 28 25 . . Terrain Rammed . | . . . . . . . Walls Destroyed . | . . . . . . . Machines Disabled . | . . . . . . . Actions | -11 -10 -10 -9 -9 -8 -8 --------- Run | Jun Mat Min Mat Min Mat Gar Total 2713 | 56 656 683 441 676 31 170 Wait 210 | . 48 4 23 135 . . Move 2198 | 47 517 648 336 483 30 137 Hop . | . . . . . . . Pick Up 34 | 1 12 6 12 1 . 2 Fast Attach 13 | 7 2 2 1 . . 1 Attach 17 | . 2 2 3 6 1 3 Detach 6 | 1 1 2 1 . . 1 Swap 26 | . 4 1 10 2 . 9 Drop 14 | . 4 . 9 . . 1 Fire 181 | . 52 18 46 49 . 16 Melee . | . . . . . . . Ram . | . . . . . . . Kick . | . . . . . . . Crush . | . . . . . . . Escape Stasis . | . . . . . . . Rewire 14 | . 14 . . . . . Trap . | . . . . . . . Miscellaneous . | . . . . . . . Route ------- -11/Junkyard -10/Materials (discovered 5 exits: *Mat x3 / [*Min x2]) -10/Mines (discovered 3 exits: *Mat x2 / [*Exi]) -9/Materials (discovered 2 exits: *Mat / *Min) -9/Mines (discovered 3 exits: *Mat x2 / [*Zio]) -8/Materials -8/Garrison (discovered 3 exits: [Fac x3]) History --------- Turn | Location | Event 22 | -11/Junkyard | Discovered new exit (range 16) 85 | -11/Junkyard | Entered Materials 250 | -10/Materials | Discovered new exit (range 8) 316 | -10/Materials | Build established: Mutant 542 | -10/Materials | Discovered new exit (range 12) 790 | -10/Materials | Discovered new exit (range 15) 1245 | -10/Materials | Discovered new exit (range 10) 1462 | -10/Materials | Discovered new exit (range 7) 1498 | -10/Materials | Entered Mines 1531 | -10/Mines | Learned Materials interactive machine intel 1545 | -10/Mines | Discovered new exit (range 13) 1970 | -10/Mines | Found a hidden stash of uninstalled traps 2216 | -10/Mines | Received a Mining Laser from a helpful Derelict 2523 | -10/Mines | Learned location of Mines (-9) 2592 | -10/Mines | Joined a pair of Derelicts in attacking an 0b10 outpost 2721 | -10/Mines | Deemed a non-threat by the Exiles lab entrance 2721 | -10/Mines | Discovered new exit (range 5) 2737 | -10/Mines | Discovered new exit (range 6) 2747 | -10/Mines | Received a Rocket Launcher from a helpful Derelict 3122 | -10/Mines | Entered Materials 3122 | -9/Materials | Evolved 2 slots: Propulsion x1, Utility x1 3123 | -9/Materials | Loaded intel: 18 interactive machine locations 3622 | -9/Materials | Discovered new exit (range 8) 3643 | -9/Materials | Identified exit to Mines 3845 | -9/Materials | Entered Mines 3860 | -9/Mines | Met a Derelict bent on vengeance 3946 | -9/Mines | Assembled infested the area 3951 | -9/Mines | Assisted by a Guerilla fighting off Assembled 4253 | -9/Mines | Core integrity fell below 50% 4345 | -9/Mines | Identified exit to Materials 4373 | -9/Mines | A Derelict revealed a hidden shortcut to a safe place 4584 | -9/Mines | Found a damaged Exp. Sensor Array with a note attached 4588 | -9/Mines | Found Prototype Device 4895 | -9/Mines | Discovered exit to Materials (range 7) 4896 | -9/Mines | Escorted by a lone wolf Derelict 4905 | -9/Mines | Entered Materials 4905 | -8/Materials | Accompanied by 1 ally 4905 | -8/Materials | Evolved 2 slots: Utility x2 4954 | -8/Materials | Identified exit to Garrison 4954 | -8/Materials | Entered Garrison 4954 | -8/Garrison | Accompanied by 1 ally 4968 | -8/Garrison | Triggered checkpoint 5003 | -8/Garrison | Discovered new exit (range 84) 5003 | -8/Garrison | Discovered new exit (range 71) 5003 | -8/Garrison | Discovered new exit (range 36) 5079 | -8/Garrison | Garrison Relay disabled 5084 | -8/Garrison | Triggered checkpoint 5140 | -8/Garrison | Lost 4 parts (1p2n1u) 5239 | -8/Garrison | Installed Relay Interface Framework 5239 | -8/Garrison | Self-destructed Last Messages --------------- 05084_ Beams of light sweep through the air. An alarm sounds. 05089_ VO-HWS(g) suffers critical hit (Burn). 05089_ VO-HWS(g) overheating. 05090_ VO-HWS(g) heat damages Carbon-fiber Leg, Beamcaster, Carbon-fiber Leg. 05090_ VO-HWS(g) critical meltdown. 05090_ VO-HWS(g): "Mission, incomplete...*fzzt*" 05091_ Imp. Ion Engine destroyed. 05091_ Critical hit (Burn: +37). 05091_ Lgt. Armor Plating destroyed. 05093_ G-47 Trooper destroyed. 05103_ Lgt. Treads destroyed. 05120_ G-47 Trooper destroyed. 05123_ Acquired 30 matter. 05124_ Acquired 27 matter. 05126_ Acquired 25 matter. 05128_ Acquired 32 matter. 05156_ Acquired Lgt. Nuclear Core. Initiating installation procedure... 05239_ Relay Interface Framework installed. Map ----- +----------------------------------------------------+ | | | | | | | | | | | | | | | | | | | | | | | | | | | | | ?????????????????????????????????????????????????? | | ?????????????????????????????????????????????????? | | ?????????????????????????????????????????????????? | | ?????????????????????????????????????????????????? | | ?????????????????????????????????????????????????? | | ?????????????????????????????????????????????????? | | ?????????????????????????????????????????????????? | | ?????????????????????????????????????????????????? | | ?????????????????????????????????????????????????? | | ???????????????????????#####?????????????????????? | | ???????????????????????#"""#??????####???????????? | | ??????????########?????#"@"#?????##!!##??????????? | | ?????######!"""""#?????#" "#?????#! !#??????????? | | ?????# ## "#?????#" "#?????#!^ !#??????????? | | ?????# ## !#?????# ^#?????### ##??????????? | | ?????#T !#?????## ##??###### #???????????? | | ?????##"### !#??????# #???# + #???????????? | | ?????# ##T !#??????# #???# ### #???????????? | | ?????###### #####??????# ##### ### #???????????? | | ??????????# #??????????# ## ## #???????????? | | ??????????# #??????????# ## = ## #???????????? | | #########?# #??????????# # [ ! #???????????? | | #?# #??????????# + #???????????? | | ##"""## #?# #??????????# ### ### #???????????? | | ?# ## #?# #??????????# ##"" "## #???????????? | | ?##+### #?# #??????????# ######### #???????????? | | ??# #?# #?#^^#??????????# #???????# #???????????? | | ??# #?# #?# #??????????# #???????# #???????????? | | ###+### ###++#####??????# #???????# #???????????? | | #??????# #???????# #???????????? | | #??????# #???????# #???????????? | | #??????#"######### ############# | | ###+### ### # #??????# | | ??# #?# #?#### #??????# | | ??# #?# #????# #??????# | | ??# ### ###### #??????# ###+###++######## ==## | +----------------------------------------------------+ Best States ------------- Heat Dissipation 45 Energy Generation 14 Energy Capacity 265 Matter Stores 300 Matter Capacity 300 Sight Range 16 Terrain Scan Density 10 Armor Coverage 300 Evasion (%) 40 Targeting Accuracy 5 Recoil Reduction 3 Item Schematics ----------------- None Robot Schematics ------------------ None Fabricated ------------ Nothing Alien Tech Used ----------------- None Achievements -------------- None Challenges ------------ None Game ------ Seed ClaymoresFlyingAxe Manual? 0 Play Time 00:24:29 Cumulative 327.1 hours Start 2023.03.04 @ 10:03:51 End 2023.03.04 @ 10:34:39 Sessions 1 Manual Loads 0 Difficulty Rogue Special Mode None Game No. 434 Rogue 347 Adventurer 87 Explorer 0 Win Type - Total 12 Types 6/0/4/1/1/0/0/0/0 Lore% 85 Gallery% 86 Achievement% 73 Wizard Run 0 Options --------- ASCII 0 Keyboard 1 Movement Numpad Keybinds 0 Fullscreen 1 Font 18/SmallcapsGlow Map View 76x50 Tactical HUD 1 Map Filters NONE Filters NONE Steam 1 RUN: 759f31f4-3254-4d2f-ad1f-96ebe8613c67